bitfinex-derivatives/quotes_SOLF0:USTF0_20241015
["timestamp","ask_amount","ask_price","bid_price","bid_amount"]
[1728959033826,3.1658,157.96,157.93,12.9064]
[1728959036322,9.74,157.96,157.92,9.74]
[1728959036528,3.166,157.95,157.92,3.1666]
[1728959037328,14.33582,157.97,157.93,3.1663]
[1728959037524,14.33582,157.97,157.93,12.9063]
[1728959040626,9.74,157.94,157.87,1.3711]
[1728959040831,9.74,157.94,157.89,9.74]
[1728959041028,9.74,157.95,157.91,9.74]
[1728959041225,12.9061,157.95,157.91,12.9067]
[1728959041830,3.1661,157.95,157.91,12.9067]
[1728959044129,12.9061,157.95,157.91,3.1667]
[1728959044330,12.9062,157.94,157.91,3.1667]
[1728959047025,3.1662,157.94,157.91,3.1667]
[1728959047628,3.1662,157.94,157.91,12.9067]
[1728959047831,3.1662,157.94,157.93,9.74]
[1728959048737,3.1661,157.95,157.93,9.74]
[1728959053740,3.166,157.95,157.93,9.74]
[1728959054036,1.43012,157.97,157.93,12.9064]
[1728959054242,1.43012,157.97,157.93,9.74]
[1728959055039,3.1659,157.96,157.93,9.74]
[1728959056642,4.59582,157.97,157.93,12.9062]
[1728959063551,4.59582,157.97,157.94,3.1662]
[1728959064440,0.12502,157.97,157.96,12.9058]
[1728959071151,0.12502,157.97,157.96,3.1658]
[1728959071352,0.12502,157.97,157.96,12.9058]
[1728959077662,3.1647,158.02,157.99,3.165]
[1728959077862,5.84332,158.03,158.0,9.74]
[1728959078560,5.84332,158.03,158.0,12.9049]
[1728959079563,4.57862,158.03,158.0,12.9049]
[1728959083673,1.41422,158.03,158.0,12.9049]
[1728959085267,1.41422,158.03,158.0,9.74]
[1728959085467,3.1649,158.01,157.97,17.6055]
[1728959085974,3.1649,158.01,157.98,9.74]
[1728959086377,3.1647,158.02,157.99,3.1651]
[1728959086577,11.15422,158.03,157.98,9.74]
[1728959088282,3.1649,158.01,157.98,9.74]
[1728959089474,3.1649,158.01,157.98,12.9054]
[1728959091076,3.1649,158.01,157.96,4.7]
[1728959091077,9.74,158.02,157.96,4.7]
[1728959091283,3.1652,157.99,157.96,12.9057]
[1728959091879,12.9051,158.0,157.96,12.9057]
[1728959092485,3.1651,158.0,157.97,9.74]
[1728959092986,3.1651,158.0,157.98,9.74]
[1728959097087,3.1651,158.0,157.97,3.1656]
[1728959097291,3.1655,157.98,157.94,4.7]
[1728959097587,3.1655,157.98,157.95,9.74]
[1728959098086,3.1652,157.99,157.95,12.9058]
[1728959098684,9.74,158.0,157.95,9.74]
[1728959099884,3.1655,157.98,157.95,12.906]
[1728959101290,3.1653,157.99,157.97,9.74]
[1728959101486,3.1653,157.99,157.98,9.74]
[1728959102092,12.3335,158.01,157.93,4.7]
[1728959102295,3.1655,157.98,157.96,9.74]
[1728959102786,3.1656,157.97,157.93,3.1662]
[1728959102992,9.74,157.99,157.95,9.74]
[1728959103286,9.74,158.0,157.95,9.74]
[1728959103694,3.1654,157.98,157.95,12.906]
[1728959104589,3.1654,157.98,157.95,3.166]
[1728959104791,3.1651,158.0,157.96,12.9057]
[1728959105093,3.1651,158.0,157.99,9.74]
[1728959105290,3.1651,158.0,157.96,3.1657]
[1728959105488,3.1652,157.99,157.97,9.74]
[1728959106391,3.165,158.0,157.97,9.74]
[1728959106597,1.3365,158.01,157.97,9.74]
[1728959107097,4.5014,158.01,157.99,9.74]
[1728959107298,1.3365,158.01,157.99,9.74]
[1728959108893,3.1646,158.02,157.99,9.74]
[1728959110693,3.1646,158.02,158.0,9.74]
[1728959118908,4.57872,158.03,157.99,12.9052]
[1728959121109,9.74,158.01,157.93,1.3494]
[1728959121320,9.74,158.01,157.91,4.80502]
[1728959121321,9.74,157.97,157.91,4.80502]
[1728959121499,9.74,157.96,157.91,4.80502]
[1728959121807,9.74,157.95,157.91,3.29172]
[1728959122207,12.9065,157.93,157.91,0.12502]
[1728959122411,9.74,157.92,157.91,0.12502]
[1728959123713,12.9064,157.93,157.91,0.12502]
[1728959126413,10.998,157.95,157.91,13.03172]
[1728959127418,14.164,157.95,157.91,13.03172]
[1728959127917,3.166,157.95,157.91,13.03172]
[1728959129012,3.1658,157.96,157.92,12.9065]
[1728959131305,12.906,157.95,157.91,9.86502]
[1728959131514,12.906,157.95,157.91,13.03172]
[1728959135221,3.166,157.95,157.91,13.03172]
[1728959135522,12.906,157.95,157.91,13.03172]
[1728959141529,9.74,157.95,157.91,0.12502]
[1728959141826,3.1666,157.92,157.91,0.12502]
[1728959142029,9.74,157.93,157.91,0.12502]
[1728959143432,3.1666,157.92,157.91,0.12502]
[1728959143633,9.74,157.94,157.91,0.12502]
[1728959144430,3.1665,157.93,157.91,0.12502]
[1728959150635,9.74,157.92,157.91,0.12502]
[1728959150837,15.7872,157.92,157.83,4.68]
[1728959151037,9.74,157.88,157.83,4.68]
[1728959151234,9.74,157.88,157.83,14.42]
[1728959152538,12.9076,157.88,157.84,3.1681]
[1728959152941,3.1676,157.88,157.85,9.86502]
[1728959153635,3.1676,157.88,157.85,13.03302]
[1728959153846,6.0472,157.92,157.87,9.74]
[1728959154041,6.0472,157.92,157.88,9.74]
[1728959154235,6.0472,157.92,157.88,12.9073]
[1728959155642,1.3672,157.92,157.89,9.74]
[1728959155844,1.3672,157.92,157.9,3.1669]
[1728959156840,1.3672,157.92,157.89,12.9071]
[1728959157746,7.8463,157.94,157.9,3.1669]
[1728959159855,4.68,157.94,157.87,4.68]
[1728959160154,3.1666,157.93,157.89,12.9072]
[1728959162049,9.74,157.92,157.87,14.42]
[1728959162253,12.9067,157.92,157.88,3.1672]
[1728959162655,4.68,157.94,157.91,3.1667]
[1728959162858,14.42,157.94,157.89,9.74]
[1728959163351,3.1664,157.93,157.9,3.1668]
[1728959163958,3.1664,157.93,157.89,12.9071]
[1728959168968,3.1671,157.9,157.87,3.1674]
[1728959169264,9.74,157.89,157.85,0.12502]
[1728959169760,12.9078,157.86,157.85,0.12502]
[1728959169963,9.74,157.86,157.79,14.54502]
[1728959170259,12.9082,157.84,157.81,3.1686]
[1728959170562,9.74,157.84,157.79,14.54502]
[1728959170756,9.74,157.85,157.8,9.74]
[1728959170955,12.9081,157.85,157.82,3.1686]
[1728959172149,3.1681,157.85,157.82,3.1686]
[1728959172755,3.1681,157.85,157.8,12.9089]
[1728959172756,3.1684,157.83,157.8,12.9089]
[1728959173158,9.74,157.83,157.79,0.12502]
[1728959173353,3.1688,157.82,157.79,0.12502]
[1728959173659,9.74,157.8,157.79,0.12502]
[1728959173856,9.74,157.8,157.73,13.03532]
[1728959174059,9.74,157.77,157.73,13.03532]
[1728959174762,12.9097,157.77,157.73,13.03532]
[1728959175262,3.1697,157.77,157.73,9.86502]
[1728959175573,3.1697,157.77,157.74,3.1702]
[1728959175753,3.1692,157.79,157.74,9.74]
[1728959176067,3.1692,157.79,157.73,0.12502]
[1728959176068,3.1692,157.79,157.75,12.9098]
[1728959176365,4.68,157.83,157.78,9.74]
[1728959176564,14.42,157.83,157.78,9.74]
[1728959177363,17.5886,157.83,157.79,3.1692]
[1728959177563,9.74,157.86,157.81,9.74]
[1728959177759,6.13142,157.85,157.81,9.74]
[1728959177957,6.13142,157.85,157.79,15.21]
[1728959178361,21.34142,157.85,157.76,15.21]
[1728959178868,21.34142,157.85,157.75,4.68]
[1728959178869,21.34142,157.85,157.75,15.21]
[1728959179068,15.21,157.82,157.74,4.68]
[1728959179572,15.21,157.82,157.76,3.1696]
[1728959179573,3.1689,157.81,157.76,3.1696]
[1728959186678,3.1689,157.81,157.75,15.21]
[1728959186872,3.1689,157.81,157.77,3.1696]
[1728959190679,6.0615,157.83,157.75,15.21]
[1728959191877,9.23,157.83,157.75,15.21]
[1728959192581,9.23,157.83,157.78,3.1692]
[1728959193285,3.1687,157.82,157.78,3.1692]
[1728959193688,15.21,157.82,157.76,3.1696]
[1728959193880,3.169,157.8,157.76,3.1696]
[1728959194288,3.169,157.8,157.77,3.1696]
[1728959194877,15.21,157.82,157.77,3.1696]
[1728959195083,3.1689,157.81,157.77,3.1696]
[1728959197973,4.4414,157.84,157.8,3.1689]
[1728959198174,1.2731,157.84,157.77,15.21]
[1728959198575,1.2731,157.84,157.81,3.1687]
[1728959200081,9.74,157.83,157.78,9.74]
[1728959200279,9.74,157.83,157.8,3.1689]
[1728959205288,9.74,157.83,157.78,9.74]
[1728959205993,9.74,157.83,157.8,3.1688]
[1728959209295,12.9084,157.83,157.8,3.1688]
[1728959211295,9.74,157.83,157.8,3.1688]
[1728959219199,9.74,157.82,157.8,3.1688]
[1728959220503,9.74,157.82,157.79,3.1692]
[1728959221502,9.74,157.82,157.78,9.74]
[1728959221705,9.74,157.82,157.8,3.169]
[1728959222100,14.1814,157.84,157.81,3.1688]
[1728959222305,11.19142,157.85,157.79,9.74]
[1728959222802,9.74,157.82,157.77,9.74]
[1728959224509,9.74,157.82,157.8,3.169]
[1728959226907,12.9085,157.83,157.8,3.169]
[1728959228599,3.1684,157.83,157.8,3.1689]
[1728959228808,3.1684,157.83,157.78,9.74]
[1728959229104,9.74,157.79,157.73,9.86502]
[1728959229305,9.74,157.79,157.76,3.1697]
[1728959229500,9.74,157.79,157.73,9.86502]
[1728959229501,9.74,157.78,157.73,0.12502]
[1728959229910,9.74,157.78,157.74,3.1701]
[1728959229911,12.9095,157.78,157.74,3.1701]
[1728959232606,12.9095,157.78,157.74,9.74]
[1728959232911,3.1695,157.78,157.75,3.1699]
[1728959235212,12.9093,157.79,157.75,3.1699]
[1728959238815,3.1693,157.79,157.75,3.1699]
[1728959239017,9.74,157.78,157.75,3.1699]
[1728959240209,9.74,157.78,157.75,3.17]
[1728959244016,9.74,157.78,157.76,3.1698]
[1728959246324,9.74,157.78,157.74,9.74]
[1728959246618,12.9094,157.78,157.75,3.17]
[1728959248120,5.8773,157.81,157.77,12.9095]
[1728959248419,6.13142,157.85,157.8,9.74]
[1728959248920,1.45142,157.85,157.81,9.74]
[1728959249420,1.45142,157.85,157.83,3.1682]
[1728959253626,0.12502,157.85,157.84,3.1682]
[1728959263334,0.12502,157.85,157.84,12.9082]
[1728959263534,0.12502,157.91,157.84,14.42]
[1728959263832,0.12502,157.91,157.9,3.167]
[1728959275829,0.12502,157.91,157.89,9.74]
[1728959276133,0.12502,157.91,157.84,4.68]
[1728959276340,0.12502,157.91,157.87,9.74]
[1728959276539,0.12502,157.91,157.89,3.1672]
[1728959280445,0.12502,157.91,157.9,3.167]
[1728959281737,0.12502,157.91,157.89,3.1671]
[1728959284350,0.12502,157.91,157.9,3.167]
[1728959284545,0.12502,157.91,157.88,9.74]
[1728959285544,0.12502,157.91,157.89,3.167]
[1728959288046,0.12502,157.91,157.9,3.167]
[1728959302452,0.12502,157.91,157.88,9.74]
[1728959303552,0.12502,157.91,157.9,3.167]
[1728959303955,0.12502,157.91,157.88,9.74]
[1728959304151,0.12502,157.91,157.82,1.3371]
[1728959304355,9.74,157.87,157.81,4.68]
[1728959304557,9.74,157.87,157.82,9.74]
[1728959304955,12.9077,157.87,157.84,3.1681]
[1728959305456,9.74,157.87,157.85,3.168]
[1728959307162,3.1675,157.88,157.85,3.168]
[1728959307749,4.5131,157.89,157.85,9.74]
[1728959307953,4.5131,157.89,157.81,4.68]
[1728959307954,1.3459,157.89,157.86,9.74]
[1728959308159,14.54502,157.91,157.86,9.74]
[1728959308560,3.167,157.9,157.87,3.1674]
[1728959309060,14.54502,157.91,157.87,3.1674]
[1728959309261,17.71192,157.91,157.87,3.1674]
[1728959312855,14.54502,157.91,157.86,9.74]
[1728959313052,12.9071,157.9,157.86,3.1677]
[1728959313261,14.1639,157.9,157.86,3.1677]
[1728959313561,1.2568,157.9,157.88,3.1672]
[1728959313960,1.2568,157.9,157.88,12.9072]
[1728959317959,0.12502,157.91,157.89,9.74]
[1728959318477,0.12502,157.91,157.9,3.167]
[1728959320659,0.12502,157.91,157.9,12.907]
[1728959325078,0.12502,157.91,157.9,3.167]
[1728959346382,0.12502,157.91,157.9,12.907]
[1728959353087,0.12502,157.91,157.9,3.167]
[1728959376908,0.12502,157.91,157.86,9.74]
[1728959377111,9.74,157.87,157.8,4.66]
[1728959377304,9.74,157.85,157.81,9.74]
[1728959377610,9.74,157.84,157.79,4.80502]
[1728959377799,9.74,157.84,157.79,14.54502]
[1728959378606,9.74,157.84,157.82,3.1685]
[1728959379706,9.74,157.84,157.79,14.54502]
[1728959379707,9.74,157.88,157.83,9.74]
[1728959380212,9.74,157.88,157.85,3.168]
[1728959380213,12.9075,157.88,157.85,3.168]
[1728959380508,9.74,157.88,157.83,9.74]
[1728959381411,3.1676,157.87,157.84,3.1681]
[1728959382712,3.1677,157.87,157.83,12.9082]
[1728959383511,3.1677,157.87,157.84,3.1682]
[1728959386913,12.9074,157.88,157.85,3.1679]
[1728959387216,4.68,157.89,157.86,9.74]
[1728959388112,7.8473,157.89,157.86,9.74]
[1728959388308,7.8473,157.89,157.85,12.9079]
[1728959392420,7.8473,157.89,157.85,3.1679]
[1728959392622,9.74,157.87,157.85,3.1679]
[1728959393012,12.9077,157.87,157.83,3.1682]
[1728959393217,12.9077,157.87,157.81,9.74]
[1728959394419,12.9077,157.87,157.84,3.1681]
[1728959395525,9.74,157.86,157.84,3.1681]
[1728959395721,4.68,157.89,157.81,3.1687]
[1728959395722,3.1682,157.84,157.81,3.1687]
[1728959397829,3.1682,157.84,157.81,12.9087]
[1728959398625,4.5011,157.85,157.81,12.9087]
[1728959399520,3.1682,157.84,157.81,9.74]
[1728959400027,3.1684,157.83,157.79,3.29402]
[1728959400219,9.74,157.84,157.79,9.86502]
[1728959401232,12.9083,157.84,157.8,3.169]
[1728959401430,9.74,157.84,157.79,0.12502]
[1728959401821,3.1684,157.83,157.79,3.29402]
[1728959402627,3.1684,157.83,157.79,0.12502]
[1728959402628,12.9088,157.81,157.79,0.12502]
[1728959404119,3.1688,157.81,157.79,0.12502]
[1728959407031,3.169,157.8,157.79,0.12502]
[1728959407429,9.74,157.8,157.75,3.1699]
[1728959407739,9.74,157.78,157.73,0.12502]
[1728959407931,14.4,157.78,157.73,0.12502]
[1728959408333,3.1697,157.77,157.73,3.29532]
[1728959408530,14.4,157.78,157.73,0.12502]
[1728959408735,4.66,157.78,157.75,9.74]
[1728959408935,2.6023,157.79,157.75,9.74]
[1728959409135,1.3101,157.79,157.76,9.74]
[1728959409335,1.3101,157.79,157.77,3.1695]
[1728959409941,1.3101,157.79,157.73,4.78502]
[1728959409942,4.66,157.81,157.79,3.1691]
[1728959410152,4.66,157.81,157.79,12.9091]
[1728959410637,7.8285,157.83,157.79,12.9091]
[1728959410844,7.8285,157.83,157.79,9.74]
[1728959411741,7.8285,157.83,157.79,12.9091]
[1728959412542,17.5685,157.83,157.79,12.9091]
[1728959412737,17.5685,157.83,157.79,3.1691]
[1728959413040,9.74,157.8,157.73,0.12502]
[1728959413241,9.74,157.8,157.74,9.74]
[1728959413551,3.169,157.8,157.76,12.9097]
[1728959415138,12.909,157.8,157.76,3.1697]
[1728959416242,3.1694,157.78,157.74,12.9101]
[1728959417943,12.9096,157.77,157.74,3.1701]
[1728959418143,3.1696,157.77,157.74,12.9101]
[1728959428443,3.1696,157.77,157.75,3.17]
[1728959431455,3.1696,157.77,157.74,9.74]
[1728959431456,3.1696,157.77,157.74,12.9101]
[1728959433357,17.5693,157.79,157.75,3.1698]
[1728959435258,7.8293,157.79,157.75,12.9098]
[1728959435659,7.8293,157.79,157.76,3.1698]
[1728959435860,4.66,157.79,157.76,9.74]
[1728959436063,4.66,157.79,157.75,9.74]
[1728959436757,4.66,157.79,157.76,3.1697]
[1728959437362,3.1691,157.8,157.76,3.1697]
[1728959437660,3.1691,157.8,157.77,3.1696]
[1728959438060,3.1691,157.8,157.75,9.74]
[1728959438256,3.1691,157.8,157.76,3.1697]
[1728959439063,9.74,157.79,157.76,3.1697]
[1728959443064,3.1695,157.78,157.75,3.1699]
[1728959443462,12.9095,157.78,157.74,9.74]
[1728959443664,3.1697,157.77,157.74,3.1701]
[1728959443858,9.74,157.75,157.73,0.12502]
[1728959444262,3.1702,157.74,157.73,0.12502]
[1728959447664,6.0015,157.77,157.73,0.12502]
[1728959447665,3.1698,157.76,157.73,0.12502]
[1728959448563,15.7415,157.77,157.73,0.12502]
[1728959448762,18.9112,157.77,157.73,3.29532]
[1728959449163,18.9112,157.77,157.73,0.12502]
[1728959449764,18.9112,157.77,157.73,3.29532]
[1728959451872,15.7415,157.77,157.73,3.29532]
[1728959452076,3.1698,157.76,157.73,3.29532]
[1728959452474,15.7415,157.77,157.73,0.12502]
[1728959452668,6.0015,157.77,157.73,0.12502]
[1728959452879,15.7415,157.77,157.73,0.12502]
[1728959453175,15.7415,157.77,157.73,3.29532]
[1728959453787,15.7415,157.77,157.73,0.12502]
[1728959453984,3.1699,157.76,157.73,0.12502]
[1728959457385,12.91,157.75,157.73,0.12502]
[1728959461995,1.3452,157.79,157.74,9.74]
[1728959462599,4.5145,157.79,157.76,3.1698]
[1728959462895,0.12502,157.85,157.77,9.74]
[1728959463093,3.1685,157.83,157.79,3.169]
[1728959463287,3.1685,157.83,157.8,9.74]
[1728959463484,14.52502,157.85,157.8,9.74]
[1728959465095,3.1686,157.82,157.78,12.9093]
[1728959472599,3.1686,157.82,157.78,9.74]
[1728959472804,0.12502,157.85,157.81,9.74]
[1728959473303,3.29312,157.85,157.81,12.9087]
[1728959473906,0.12502,157.85,157.82,3.1685]
[1728959474507,3.29302,157.85,157.81,12.9086]
[1728959475699,0.12502,157.85,157.81,12.9086]
[1728959475904,3.1682,157.84,157.8,12.9089]
[1728959476104,12.9082,157.84,157.8,3.1689]
[1728959478311,3.1682,157.84,157.8,12.9089]
[1728959479109,3.1682,157.84,157.81,3.1688]
[1728959481905,0.12502,157.85,157.84,3.1682]
[1728959482106,0.12502,157.85,157.84,9.74]
[1728959482413,0.12502,157.85,157.77,4.66]
[1728959482414,0.12502,157.85,157.82,9.74]
[1728959482710,0.12502,157.85,157.83,3.1683]
[1728959483905,0.12502,157.85,157.84,3.1682]
[1728959491816,0.12502,157.85,157.81,4.66]
[1728959492017,9.86502,157.85,157.75,1.3788]
[1728959492320,9.86502,157.85,157.79,9.74]
[1728959492513,3.1683,157.84,157.81,3.1687]
[1728959493311,9.86502,157.85,157.8,9.74]
[1728959493505,0.12502,157.85,157.83,9.74]
[1728959494507,3.29312,157.85,157.83,3.1683]
[1728959494822,0.12502,157.85,157.81,9.74]
[1728959495422,0.12502,157.85,157.83,3.1682]
[1728959496717,0.12502,157.85,157.81,9.74]
[1728959496925,0.12502,157.85,157.83,9.74]
[1728959497917,0.12502,157.85,157.84,12.9082]
[1728959498316,0.12502,157.85,157.84,3.1682]
[1728959498517,0.12502,157.85,157.84,12.9082]
[1728959501018,0.12502,157.85,157.84,17.5682]
[1728959504020,0.12502,157.85,157.84,7.8282]
[1728959504218,0.12502,157.85,157.84,17.5682]
[1728959509538,0.12502,157.85,157.84,7.8282]
[1728959509734,0.12502,157.85,157.84,17.5682]
[1728959514039,0.12502,157.85,157.84,7.8282]
[1728959514341,0.12502,157.85,157.84,17.5682]
[1728959515439,0.12502,157.85,157.84,7.8282]
[1728959515738,0.12502,157.85,157.84,17.5682]
[1728959517040,0.12502,157.85,157.84,12.9082]
[1728959521035,0.12502,157.85,157.84,9.74]
[1728959521543,0.12502,157.85,157.81,14.38]
[1728959521742,3.29312,157.85,157.82,3.1685]
[1728959522343,3.29312,157.85,157.81,14.38]
[1728959522545,3.29312,157.85,157.83,3.1684]
[1728959525047,3.29312,157.85,157.83,12.9084]
[1728959525643,0.12502,157.85,157.83,12.9084]
[1728959527752,0.12502,157.85,157.83,9.74]
[1728959527951,0.12502,157.85,157.84,12.9082]
[1728959532053,6.09742,157.91,157.89,3.1671]
[1728959532249,9.26442,157.91,157.88,9.74]
[1728959532447,9.26442,157.91,157.86,9.74]
[1728959532753,9.26442,157.91,157.85,12.9079]
[1728959532754,3.1674,157.88,157.85,12.9079]
[1728959533060,9.74,157.86,157.81,4.66]
[1728959533245,9.74,157.85,157.82,3.1684]
[1728959533951,9.74,157.85,157.83,3.1684]
[1728959535257,3.1683,157.84,157.81,3.1688]
[1728959535460,12.9083,157.84,157.81,3.1688]
[1728959535755,9.74,157.84,157.79,14.52502]
[1728959535960,9.74,157.84,157.79,4.78502]
[1728959536755,3.1684,157.83,157.8,3.1688]
[1728959537051,9.74,157.84,157.8,3.1688]
[1728959537452,12.9084,157.84,157.8,3.1688]
[1728959537756,9.74,157.84,157.8,3.1688]
[1728959538362,3.1684,157.83,157.8,3.1688]
[1728959540664,3.1687,157.82,157.79,3.29412]
[1728959541365,2.5781,157.85,157.79,0.12502]
[1728959541366,1.3816,157.84,157.79,0.12502]
[1728959541554,3.1684,157.83,157.8,3.1689]
[1728959541971,11.1216,157.84,157.81,9.74]
[1728959541972,1.3816,157.84,157.81,9.74]
[1728959542263,2.5781,157.85,157.82,9.74]
[1728959542956,5.7461,157.85,157.82,12.9085]
[1728959545069,5.7461,157.85,157.82,3.1685]
[1728959547472,2.5781,157.85,157.83,3.1682]
[1728959548869,2.5781,157.85,157.82,3.1685]
[1728959549068,5.7461,157.85,157.82,3.1685]
[1728959562777,2.5781,157.85,157.81,9.74]
[1728959562983,1.3816,157.9,157.84,9.74]
[1728959563279,1.3816,157.9,157.85,9.74]
[1728959563581,14.50502,157.91,157.85,9.74]
[1728959563890,17.67182,157.91,157.87,3.1674]
[1728959564182,7.93182,157.91,157.87,3.1674]
[1728959566276,3.29182,157.91,157.87,3.1674]
[1728959567281,3.29182,157.91,157.87,12.9074]
[1728959569183,12.9071,157.9,157.87,3.1674]
[1728959569579,9.74,157.9,157.8,2.6712]
[1728959569781,9.74,157.86,157.81,9.74]
[1728959570490,9.74,157.86,157.83,3.1683]
[1728959570879,9.74,157.86,157.81,9.74]
[1728959571083,9.74,157.86,157.84,3.1682]
[1728959572585,12.9076,157.87,157.84,3.1682]
[1728959573087,3.1673,157.89,157.86,3.1676]
[1728959573278,9.86502,157.91,157.85,9.74]
[1728959573592,0.12502,157.91,157.85,9.74]
[1728959573785,9.86502,157.91,157.85,9.74]
[1728959574490,3.1671,157.9,157.87,3.1675]
[1728959577591,12.9071,157.9,157.87,3.1675]
[1728959579387,3.1671,157.9,157.87,3.1675]
[1728959583793,0.12502,157.91,157.89,3.1671]
[1728959585091,0.12502,157.91,157.89,12.9071]
[1728959586103,0.12502,157.91,157.9,12.907]
[1728959586300,0.12502,157.91,157.88,9.74]
[1728959586600,9.74,157.89,157.87,3.1676]
[1728959587710,9.74,157.9,157.87,3.1674]
[1728959588898,9.74,157.9,157.88,3.1674]
[1728959590807,3.29192,157.91,157.88,3.1674]
[1728959591199,0.12502,157.91,157.9,3.167]
[1728959596110,13.03192,157.91,157.88,3.1674]
[1728959596302,13.03192,157.91,157.83,1.3886]
[1728959596303,9.74,157.9,157.83,1.3886]
[1728959596500,9.74,157.9,157.84,14.38]
[1728959597199,3.1672,157.89,157.86,3.1677]
[1728959597396,9.74,157.89,157.84,9.74]
[1728959597596,12.9082,157.85,157.81,3.1687]
[1728959598402,12.9082,157.85,157.8,9.74]
[1728959598709,12.9082,157.85,157.82,3.1685]
[1728959599007,9.74,157.85,157.82,3.1685]
[1728959599709,3.1679,157.86,157.82,12.9085]
[1728959600499,14.38,157.87,157.82,9.74]
[1728959600805,7.8077,157.87,157.83,9.74]
[1728959601013,10.9937,157.88,157.83,9.74]
[1728959602497,14.1612,157.88,157.85,3.168]
[1728959604112,9.74,157.87,157.82,9.74]
[1728959605312,12.9076,157.87,157.84,3.1681]
[1728959605518,14.38,157.86,157.79,0.12502]
[1728959605717,9.74,157.83,157.79,0.12502]
[1728959605908,12.9085,157.83,157.8,3.169]
[1728959606313,9.74,157.83,157.79,0.12502]
[1728959606516,3.1687,157.82,157.79,3.29412]
[1728959608114,3.1687,157.82,157.8,9.74]
[1728959608305,3.1683,157.84,157.8,9.74]
[1728959608613,14.38,157.86,157.81,9.74]
[1728959608914,3.1681,157.85,157.82,3.1685]
[1728959610810,9.74,157.84,157.81,3.1687]
[1728959617014,12.9082,157.84,157.81,3.1687]
[1728959618914,3.1684,157.83,157.81,3.1687]
[1728959619219,9.74,157.84,157.81,3.1687]
[1728959619615,9.74,157.83,157.8,3.1689]
[1728959621322,3.1686,157.82,157.8,3.1689]
[1728959621721,3.1686,157.82,157.79,0.12502]
[1728959621722,9.74,157.82,157.79,0.12502]
[1728959621922,11.1222,157.82,157.79,0.12502]
[1728959623028,3.1689,157.81,157.79,0.12502]
[1728959624731,4.5509,157.82,157.79,13.03412]
[1728959628234,4.64,157.86,157.81,3.1688]
[1728959628436,9.74,157.84,157.81,3.1688]
[1728959629548,12.9082,157.84,157.81,3.1688]
[1728959631747,14.2554,157.85,157.81,3.1687]
[1728959633447,9.74,157.84,157.81,3.1687]
[1728959635249,12.9082,157.84,157.81,3.1687]
[1728959639452,12.9082,157.84,157.8,3.1689]
[1728959640859,3.1682,157.84,157.81,3.1688]
[1728959641059,3.1682,157.84,157.79,9.86502]
[1728959641558,3.1682,157.84,157.8,3.1689]
[1728959644052,3.1689,157.81,157.79,0.12502]
[1728959644655,12.909,157.8,157.79,0.12502]
[1728959644850,11.0305,157.8,157.73,0.12502]